fUSD/lending_fUSD_20240119
["ID","MTS","AMOUNT","RATE_DAILY","PERIOD"]
[312150024,1705669873830,-715.61,0.00022739,2]
[312150025,1705669873841,-500.0,0.00022739,2]
[312150026,1705669873852,-500.0,0.00022739,2]
[312150027,1705669873863,-735.86,0.00022739,2]
[312150028,1705669873874,-500.0,0.00022739,2]
[312150029,1705669873884,-2712.45923272,0.0002275,2]
[312150030,1705669873894,-160.0,0.00022766,2]
[312150031,1705669873904,-400.0,0.000228,8]
[312150032,1705669873914,-500.0,0.00022816,2]
[312150033,1705669873924,-1426.3407386,0.00022818,6]
[312150034,1705669873933,-151.1,0.00022819,2]
[312150035,1705669873943,-157.0,0.0002286,2]
[312150036,1705669873953,-482.85,0.00022869,2]
[312150037,1705669873963,-152.32647703,0.000229,2]
[312150038,1705669873973,-400.0,0.000229,8]
[312150039,1705669873985,-401.77,0.00022946,2]
[312150040,1705669873995,-401.77,0.00022946,2]
[312150041,1705669874005,-941.43,0.00022946,2]
[312150042,1705669874016,-941.43,0.00022946,2]
[312150043,1705669874026,-941.43,0.00022946,2]
[312150044,1705669874035,-941.43,0.00022946,2]
[312150045,1705669874045,-500.0,0.00022965,2]
[312150046,1705669874055,-500.0,0.00022965,2]
[312150047,1705669874065,-1117.22,0.00022965,2]
[312150048,1705669874074,-500.0,0.00022966,2]
[312150049,1705669874084,-500.0,0.00022966,2]
[312150050,1705669874094,-1117.22,0.00022966,2]
[312150051,1705669874105,-2777.79,0.00022966,2]
[312150052,1705669874115,-2777.79,0.00022966,2]
[312150053,1705669874125,-1793.21,0.00022966,2]
[312150054,1705669874134,-502.29180648,0.00022966,2]
[312150055,1705669874149,-1305.51,0.00022966,2]
[312150056,1705669874158,-500.0,0.00022966,2]
[312150057,1705669874168,-1000.0,0.00022966,7]
[312150058,1705669874178,-998.25,0.00022966,2]
[312150059,1705669874189,-776.9,0.00022966,2]
[312150060,1705669874199,-784.93,0.00022966,2]
[312150061,1705669874210,-544.79,0.00022966,2]
[312150062,1705669874220,-940.43,0.00022966,2]
[312150063,1705669874230,-500.0,0.00022966,2]
[312150064,1705669874240,-952.59,0.00022966,2]
[312150065,1705669874250,-500.68,0.00022966,2]
[312150066,1705669874260,-729.01,0.00022966,2]
[312150067,1705669874270,-500.0,0.00022966,2]
[312150068,1705669874279,-570.65,0.00022966,2]
[312150069,1705669874289,-1138.38,0.00022966,2]
[312150070,1705669874299,-1506.44,0.00022966,2]
[312150071,1705669874309,-850.36,0.00022966,2]
[312150072,1705669874319,-1199.42,0.00022966,2]
[312150073,1705669874329,-1703.39,0.00022966,2]
[312150074,1705669874340,-1197.96,0.00022966,2]
[312150075,1705669874351,-500.0,0.00022966,2]
[312150076,1705669874361,-678.77,0.00022966,2]
[312150077,1705669874371,-583.35,0.00022966,2]
[312150078,1705669874381,-894.82,0.00022966,2]
[312150079,1705669874392,-858.01,0.00022966,2]
[312150080,1705669874401,-691.38,0.00022966,2]
[312150081,1705669874411,-971.8,0.00022966,2]
[312150082,1705669874422,-2000.0,0.00022966,2]
[312150083,1705669874432,-692.80565913,0.00022966,2]
[312150084,1705669874442,-798.78,0.00022966,2]
[312150085,1705669874453,-966.67,0.00022966,2]
[312150086,1705669874464,-500.0,0.00022966,2]
[312150087,1705669874474,-1108.5,0.00022966,2]
[312150088,1705669874485,-500.0,0.00022966,2]
[312150089,1705669874495,-952.64,0.00022966,2]
[312150090,1705669874506,-508.2269982,0.00022966,2]
[312150091,1705669874516,-500.0,0.00022966,2]
[312150092,1705669874527,-920.74,0.00022966,2]
[312150093,1705669874537,-1155.38,0.00022966,2]
[312150094,1705669874547,-500.0,0.00022966,2]
[312150095,1705669874558,-500.0,0.00022966,2]
[312150096,1705669874568,-500.0,0.00022966,2]
[312150097,1705669874578,-656.74,0.00022966,2]
[312150098,1705669874588,-1240.41,0.00022966,2]
[312150099,1705669874599,-500.0,0.00022966,2]
[312150100,1705669874609,-1113.02,0.00022966,2]
[312150101,1705669874620,-500.0,0.00022966,2]
[312150102,1705669874631,-594.85,0.00022966,2]
[312150103,1705669874641,-1108.53,0.00022966,2]
[312150104,1705669874652,-500.0,0.00022966,2]
[312150105,1705669874662,-685.72,0.00022966,2]
[312150106,1705669874839,-2887.99,0.00022966,2]
[312150107,1705669874851,-1061.46,0.00022966,2]
[312150108,1705669874861,-2576.06,0.00022966,2]
[312150109,1705669874872,-884.86,0.00022966,2]
[312150110,1705669874883,-1444.68,0.00022966,2]
[312150111,1705669874893,-1400.48,0.00022966,2]
[312150112,1705669874904,-800.66,0.00022966,2]
[312150113,1705669874914,-500.0,0.00022966,2]
[312150114,1705669874924,-718.12,0.00022966,2]
[312150115,1705669874934,-819.09,0.00022966,2]
[312150116,1705669874944,-1194.07,0.00022966,2]
[312150117,1705669874953,-1896.64,0.00022966,2]
[312150118,1705669874964,-1350.41,0.00022966,2]
[312150119,1705669874976,-1068.88,0.00022966,2]
[312150120,1705669874986,-905.24,0.00022966,2]
[312150121,1705669874996,-500.0,0.00022966,2]
[312150122,1705669875007,-1145.69,0.00022966,2]
[312150123,1705669875017,-502.2,0.00022966,2]
[312150124,1705669875027,-1504.96,0.00022966,2]
[312150125,1705669875038,-500.0,0.00022966,2]
[312150126,1705669875048,-1076.22,0.00022966,2]
[312150127,1705669875059,-1677.73,0.00022966,2]
[312150128,1705669875069,-209.21422491,0.00022967,2]
[312150129,1705669875080,-509.91620346,0.00022967,2]
[312150130,1705669875090,-503.84209883,0.00022967,2]
[312150131,1705669875102,-178.11456844,0.00022967,2]
[312150132,1705669875112,-500.0,0.00022967,2]
[312150133,1705669875122,-500.0,0.00022967,2]
[312150134,1705669875133,-188.37522881,0.00022967,2]
[312150135,1705669875144,-502.95867543,0.00022967,2]
[312150136,1705669875154,-430.51029108,0.00022967,2]
[312150137,1705669875165,-500.0,0.00022967,2]
[312150138,1705669875175,-500.0,0.00022967,2]
[312150139,1705669875187,-500.0,0.00022967,2]
[312150140,1705669875197,-502.64614253,0.00022967,2]
[312150141,1705669875208,-362.17612718,0.00022967,2]
[312150142,1705669875218,-500.0,0.00022967,2]
[312150143,1705669875229,-503.99859705,0.00022967,2]
[312150144,1705669875239,-500.0,0.00022967,2]
[312150145,1705669875249,-500.0,0.00022967,2]
[312150146,1705669875259,-500.0,0.00022967,2]
[312150147,1705669875269,-500.0,0.00022967,2]
[312150148,1705669875279,-500.0,0.00022967,2]
[312150149,1705669875289,-509.54812782,0.00022967,2]
[312150150,1705669875300,-515.56936524,0.00022967,2]
[312150151,1705669875312,-500.0,0.00022967,2]
[312150152,1705669875322,-500.0,0.00022967,2]
[312150153,1705669875333,-506.3038131,0.00022967,2]
[312150154,1705669875343,-500.0,0.00022967,2]
[312150155,1705669875354,-500.0,0.00022967,2]
[312150156,1705669875364,-492.56946378,0.00022967,2]
[312150157,1705669875375,-500.0,0.00022967,2]
[312150158,1705669875385,-319.48093231,0.00022967,2]
[312150159,1705669875396,-500.0,0.00022967,2]
[312150160,1705669875406,-500.0,0.00022967,2]
[312150161,1705669875417,-500.0,0.00022967,2]
[312150162,1705669875428,-500.0,0.00022967,2]
[312150163,1705669875438,-501.91089486,0.00022967,2]
[312150164,1705669875448,-500.0,0.00022967,10]
[312150165,1705669875459,-500.0,0.00022967,2]
[312150166,1705669875469,-500.0,0.00022967,2]
[312150167,1705669875479,-260.50122287,0.00022968,2]
[312150168,1705669875491,-206.73159676,0.00022968,2]
[312150169,1705669875502,-500.0,0.00022968,2]
[312150170,1705669875513,-500.0,0.00022968,2]
[312150171,1705669875524,-500.0,0.00022968,2]
[312150172,1705669875535,-500.0,0.00022968,2]
[312150173,1705669875545,-500.0,0.00022968,2]
[312150174,1705669875555,-500.0,0.00022968,2]
[312150175,1705669875566,-1117.22,0.00022968,2]
[312150176,1705669875577,-1117.22,0.00022968,2]
[312150177,1705669875587,-2777.79,0.00022968,2]
[312150178,1705669875598,-500.0,0.00022968,2]
[312150179,1705669875612,-723.89,0.00022969,2]
[312150180,1705669875622,-500.0,0.00022969,2]
[312150181,1705669875633,-657.2,0.00022969,2]
[312150182,1705669875644,-500.0,0.00022969,2]
[312150183,1705669875654,-500.0,0.00022969,2]
[312150184,1705669875664,-658.25,0.00022969,2]
[312150185,1705669875676,-500.0,0.00022969,2]
[312150186,1705669875686,-500.0,0.00022969,2]
[312150187,1705669875697,-500.0,0.00022969,2]
[312150188,1705669875708,-500.0,0.00022969,2]
[312150189,1705669875718,-500.0,0.00022969,2]
[312150190,1705669875729,-500.0,0.00022969,2]
[312150191,1705669875740,-500.0,0.00022969,2]
[312150192,1705669875752,-500.0,0.00022969,2]
[312150193,1705669875762,-570.75,0.00022969,2]
[312150194,1705669875773,-500.0,0.00022969,2]
[312150195,1705669875784,-582.99,0.00022969,2]
[312150196,1705669875797,-500.0,0.00022969,2]
[312150197,1705669875807,-500.0,0.00022969,2]
[312150198,1705669875818,-500.0,0.00022969,2]
[312150199,1705669875829,-1449.11,0.00022969,2]
[312150200,1705669875841,-500.0,0.00022969,2]
[312150201,1705669875853,-1134.6,0.00022969,2]
[312150202,1705669875865,-500.0,0.00022969,2]
[312150203,1705669875876,-598.69,0.00022969,2]
[312150204,1705669875886,-638.02,0.00022969,2]
[312150205,1705669875895,-500.0,0.00022969,2]
[312150206,1705669875905,-500.0,0.00022969,2]
[312150207,1705669875916,-500.0,0.00022969,2]
[312150208,1705669875926,-746.32,0.00022969,2]
[312150209,1705669875937,-532.01,0.00022969,2]
[312150210,1705669875948,-500.0,0.00022969,2]
[312150211,1705669875958,-616.63291075,0.00022969,2]
[312150212,1705669875969,-500.0,0.00022969,2]
[312150213,1705669875979,-795.41,0.00022969,2]
[312150214,1705669875990,-500.0,0.00022969,2]
[312150215,1705669875999,-500.0,0.00022969,2]
[312150216,1705669876010,-500.0,0.00022969,2]
[312150217,1705669876019,-1341.46,0.00022969,2]
[312150218,1705669876030,-500.0,0.00022969,2]
[312150219,1705669876040,-2777.79,0.00022969,2]
[312150220,1705669876050,-500.0,0.00022969,2]
[312150221,1705669876061,-500.0,0.00022969,2]
[312150222,1705669876072,-500.0,0.00022969,2]
[312150223,1705669876082,-555.25,0.00022969,2]
[312150224,1705669876092,-849.48,0.00022969,2]
[312150225,1705669876104,-500.0,0.00022969,2]
[312150226,1705669876114,-500.0,0.00022969,2]
[312150227,1705669876124,-500.0,0.00022969,2]
[312150228,1705669876134,-549.55,0.00022969,2]
[312150229,1705669876144,-500.0,0.00022969,2]
[312150230,1705669876154,-1615.25,0.00022969,2]
[312150231,1705669876164,-688.47,0.00022969,2]
[312150232,1705669876174,-500.0,0.00022969,2]
[312150233,1705669876184,-500.0,0.00022969,2]
[312150234,1705669876194,-628.42706181,0.0002297,2]
[312150235,1705669876205,-500.0,0.0002297,2]
[312150236,1705669876216,-500.0,0.0002297,2]
[312150237,1705669876226,-500.0,0.0002297,2]
[312150238,1705669876236,-500.0,0.0002297,2]
[312150239,1705669876247,-532.01818404,0.0002297,2]
[312150240,1705669876258,-500.0,0.0002297,2]
[312150241,1705669876268,-500.0,0.0002297,2]
[312150242,1705669876279,-1231.94,0.0002297,2]
[312150243,1705669876289,-500.0,0.0002297,2]
[312150244,1705669876299,-500.0,0.0002297,2]
[312150245,1705669876309,-680.51,0.0002297,2]
[312150246,1705669876319,-686.07,0.0002297,2]
[312150247,1705669876330,-500.0,0.0002297,2]
[312150248,1705669876339,-500.0,0.0002297,2]
[312150249,1705669876350,-503.61312853,0.0002297,2]
[312150250,1705669876361,-500.0,0.0002297,2]
[312150251,1705669876372,-508.96375145,0.0002297,2]
[312150252,1705669876382,-500.0,0.0002297,2]
[312150253,1705669876392,-500.0,0.0002297,2]
[312150254,1705669876402,-500.0,0.0002297,2]
[312150255,1705669876412,-500.0,0.0002297,2]
[312150256,1705669876422,-500.0,0.0002297,2]
[312150257,1705669876432,-500.0,0.0002297,2]
[312150258,1705669876442,-500.65,0.0002297,2]
[312150259,1705669876453,-500.0,0.0002297,2]
[312150260,1705669876463,-505.00995609,0.0002297,2]
[312150261,1705669876473,-500.0,0.0002297,2]
[312150262,1705669876483,-500.0,0.0002297,2]
[312150263,1705669876493,-500.0,0.0002297,2]
[312150264,1705669876503,-1025.0,0.0002297,2]
[312150265,1705669876513,-500.0,0.0002297,2]
[312150266,1705669876523,-500.0,0.0002297,2]
[312150267,1705669876533,-500.0,0.0002297,2]
[312150268,1705669876543,-500.0,0.0002297,2]
[312150269,1705669876553,-500.0,0.0002297,2]
[312150270,1705669876563,-511.27,0.0002297,2]
[312150271,1705669876573,-622.13,0.0002297,2]
[312150272,1705669876584,-500.0,0.0002297,2]
[312150273,1705669876593,-500.0,0.0002297,2]
[312150274,1705669876604,-500.0,0.0002297,2]
[312150275,1705669876614,-658.25,0.00022971,2]
[312150276,1705669876623,-500.0,0.00022971,2]
[312150277,1705669876633,-500.0,0.00022971,2]
[312150278,1705669876643,-500.0,0.00022971,2]
[312150279,1705669876654,-33479.56881694,0.00022972,2]
[312150280,1705669876665,-231.84627581,0.00022972,2]
[312150281,1705669876676,-3964.39161946,0.00022972,2]
[312150282,1705669876686,-155.28754973,0.00022972,2]
[312150283,1705669876695,-211.58756355,0.00022972,2]
[312150284,1705669876704,-200.0,0.00022972,2]
[312150285,1705669876714,-4845.54268652,0.00022973,2]
[312150286,1705669876724,-957.32793006,0.00022973,2]
[312150287,1705669876734,-604.16281631,0.00022973,2]
[312150288,1705669876746,-500.0,0.00022973,2]
[312150289,1705669876756,-658.25,0.00022973,2]
[312150290,1705669876766,-500.0,0.00022973,2]
[312150291,1705669876776,-1117.22,0.00022973,2]
[312150292,1705669876786,-500.0,0.00022973,2]
[312150293,1705669876799,-500.0,0.00022973,2]
[312150294,1705669876808,-500.0,0.00022974,2]
[312150295,1705669876818,-500.0,0.00022974,2]
[312150296,1705669876828,-500.0,0.00022974,2]
[312150297,1705669876838,-500.0,0.00022974,2]
[312150298,1705669876848,-500.0,0.00022974,2]
[312150299,1705669876859,-500.0,0.00022974,2]
[312150300,1705669876869,-658.25,0.00022974,2]
[312150301,1705669876879,-658.25,0.00022974,2]
[312150302,1705669876889,-658.25,0.00022974,2]
[312150303,1705669876899,-658.25,0.00022974,2]
[312150304,1705669876909,-658.25,0.00022974,2]
[312150305,1705669876920,-658.25,0.00022974,2]
[312150306,1705669876930,-658.25,0.00022974,2]
[312150307,1705669876941,-658.25,0.00022974,2]
[312150308,1705669876951,-658.25,0.00022974,2]
[312150309,1705669876961,-658.25,0.00022974,2]
[312150310,1705669876973,-658.25,0.00022974,2]
[312150311,1705669876983,-658.25,0.00022974,2]
[312150312,1705669876993,-658.25,0.00022974,2]
[312150313,1705669877003,-658.25,0.00022974,2]
[312150314,1705669877013,-658.25,0.00022974,2]
[312150315,1705669877023,-658.25,0.00022974,2]
[312150316,1705669877033,-658.25,0.00022974,2]
[312150317,1705669877043,-658.25,0.00022974,2]
[312150318,1705669877053,-658.25,0.00022974,2]
[312150319,1705669877064,-658.25,0.00022974,2]
[312150320,1705669877074,-658.34,0.00022974,2]
[312150321,1705669877085,-500.0,0.00022974,2]
[312150322,1705669877095,-500.0,0.00022974,2]
[312150323,1705669877106,-500.0,0.00022974,2]
[312150324,1705669877476,-500.0,0.00022974,2]
[312150325,1705669877492,-500.0,0.00022974,2]
[312150326,1705669877502,-500.0,0.00022974,2]
[312150327,1705669877512,-500.0,0.00022974,2]
[312150328,1705669877522,-500.0,0.00022974,2]
[312150329,1705669877532,-500.0,0.00022974,2]
[312150330,1705669877543,-500.0,0.00022974,2]
[312150331,1705669877554,-500.0,0.00022974,2]
[312150332,1705669877564,-500.0,0.00022974,2]
[312150333,1705669877573,-1117.22,0.00022974,2]
[312150334,1705669877582,-1117.22,0.00022974,2]
[312150335,1705669877592,-1117.22,0.00022974,2]
[312150336,1705669877601,-1117.22,0.00022974,2]
[312150337,1705669877611,-1117.22,0.00022974,2]
[312150338,1705669877621,-1117.22,0.00022974,2]
[312150339,1705669877631,-2777.79,0.00022974,2]
[312150340,1705669877640,-2777.79,0.00022974,2]
[312150341,1705669877651,-2777.79,0.00022974,2]
[312150342,1705669877661,-2777.79,0.00022974,2]
[312150343,1705669877671,-2777.79,0.00022974,2]
[312150344,1705669877681,-2777.79,0.00022974,2]
[312150345,1705669877691,-500.0,0.00022974,2]
[312150346,1705669877702,-516.47852596,0.00022974,2]
[312150347,1705669877713,-263.7417123,0.00022974,2]
[312150348,1705669877723,-404.32116418,0.00022976,2]
[312150349,1705669877733,-357.00971953,0.00022977,2]
[312150350,1705669877743,-155.18602994,0.00022977,2]
[312150351,1705669877753,-302.20853106,0.00022977,2]
[312150352,1705669877763,-6321.84160053,0.00022977,2]
[312150353,1705669877774,-1365.65513515,0.00022977,2]
[312150354,1705669877784,-2306.5799976,0.00022977,2]
[312150355,1705669877797,-1993.85352501,0.00022977,2]
[312150356,1705669877807,-155.41027789,0.00022977,2]
[312150357,1705669877817,-11799.39517941,0.00022977,2]
[312150358,1705669877827,-184.13413816,0.00022978,2]
[312150359,1705669877837,-305.79551846,0.00022978,2]
[312150360,1705669877847,-500.0,0.00022978,2]
[312150361,1705669877859,-2777.79,0.00022978,2]
[312150362,1705669877870,-6000.0,0.0002299,2]
[312150363,1705669877880,-489.01,0.00022991,2]
[312150364,1705669877890,-941.43,0.00022991,2]
[312150365,1705669877900,-941.43,0.00022991,2]
[312150366,1705669877910,-941.43,0.00022991,2]
[312150367,1705669877920,-941.43,0.00022991,2]
[312150368,1705669877930,-500.0,0.00022993,2]
[312150369,1705669877939,-500.0,0.00022993,2]
[312150370,1705669877949,-500.0,0.00022993,2]
[312150371,1705669877958,-1117.22,0.00022993,2]
[312150372,1705669877969,-300.0,0.00022995,2]
[312150373,1705669877979,-5937.60574647,0.00022995,2]
[312150374,1705669877989,-269.89826797,0.00022995,2]
[312150375,1705669877998,-720.44583276,0.00022995,2]
[312150376,1705669878008,-999.99,0.00022998,2]
[312150377,1705669878018,-1000.01,0.00022998,2]
[312150378,1705669878027,-999.99,0.00022998,2]
[312150379,1705669878037,-1000.0,0.00022998,2]
[312150380,1705669878047,-1000.0,0.00022998,2]
[312150381,1705669878056,-1000.0,0.00022998,2]
[312150382,1705669878066,-763.0,0.00022998,2]
[312150383,1705669878076,-999.97,0.00022998,2]
[312150384,1705669878086,-999.97,0.00022998,2]
[312150385,1705669878096,-999.98,0.00022998,2]
[312150386,1705669878106,-999.99,0.00022998,2]
[312150387,1705669878115,-999.97,0.00022998,2]
[312150388,1705669878125,-696.02,0.00022998,2]
[312150389,1705669878136,-1000.0,0.00022998,2]
[312150390,1705669878146,-999.97,0.00022998,2]
[312150391,1705669878156,-999.97,0.00022998,2]
[312150392,1705669878166,-999.96,0.00022998,2]
[312150393,1705669878177,-999.99,0.00022998,2]
[312150394,1705669878187,-150.0,0.00022999,2]
[312150395,1705669878197,-5000.0,0.00023,2]
[312150396,1705669878206,-556440.48618309,0.00023,2]
[312150397,1705669878216,-2777.79,0.00023012,2]
[312150398,1705669878225,-500.0,0.00023012,2]
[312150399,1705669878235,-150.0,0.00023012,2]
[312150400,1705669878245,-151.0,0.00023013,7]
[312150401,1705669878255,-500.0,0.00023013,2]
[312150402,1705669878265,-481.68465772,0.00023013,2]
[312150403,1705669878275,-500.0,0.00023013,2]
[312150404,1705669878285,-500.0,0.00023013,2]
[312150405,1705669878294,-500.0,0.00023013,2]
[312150406,1705669878304,-500.0,0.00023013,2]
[312150407,1705669878314,-500.0,0.00023013,2]
[312150408,1705669878323,-500.0,0.00023013,2]
[312150409,1705669878334,-1166.14,0.00023013,2]
[312150410,1705669878344,-500.0,0.00023013,2]
[312150411,1705669878356,-636.19,0.00023013,2]
[312150412,1705669878366,-535.61,0.00023013,2]
[312150413,1705669878377,-500.0,0.00023013,2]
[312150414,1705669878387,-500.0,0.00023013,2]
[312150415,1705669878397,-500.0,0.00023013,2]
[312150416,1705669878407,-500.0,0.00023013,2]
[312150417,1705669878417,-881.3,0.00023013,2]
[312150418,1705669878428,-375.15036717,0.00023013,2]
[312150419,1705669878438,-1150.15,0.00023013,2]
[312150420,1705669878449,-500.0,0.00023013,2]
[312150421,1705669878459,-500.0,0.00023013,2]
[312150422,1705669878469,-500.0,0.00023013,2]
[312150423,1705669878479,-500.0,0.00023013,2]
[312150424,1705669878488,-500.0,0.00023013,2]
[312150425,1705669878498,-500.0,0.00023013,2]
[312150426,1705669878507,-500.0,0.00023013,2]
[312150427,1705669878518,-500.0,0.00023013,2]
[312150428,1705669878529,-558.96,0.00023013,2]
[312150429,1705669878540,-767.26,0.00023013,2]
[312150430,1705669878549,-500.0,0.00023013,2]
[312150431,1705669878559,-671.71,0.00023013,2]
[312150432,1705669878569,-500.0,0.00023013,2]
[312150433,1705669878579,-500.0,0.00023013,2]
[312150434,1705669878589,-500.0,0.00023013,2]
[312150435,1705669878599,-545.37,0.00023013,2]
[312150436,1705669878610,-500.0,0.00023013,2]
[312150437,1705669878620,-698.53,0.00023013,2]
[312150438,1705669878631,-500.0,0.00023013,2]
[312150439,1705669878642,-500.0,0.00023013,2]
[312150440,1705669878652,-500.0,0.00023013,2]
[312150441,1705669878663,-790.21,0.00023013,2]
[312150442,1705669878674,-703.41,0.00023013,2]
[312150443,1705669878684,-500.0,0.00023013,2]
[312150444,1705669878695,-500.0,0.00023013,2]
[312150445,1705669878706,-895.32,0.00023013,2]
[312150446,1705669878717,-500.0,0.00023013,2]
[312150447,1705669878727,-500.0,0.00023013,2]
[312150448,1705669878738,-571.69,0.00023013,2]
[312150449,1705669878748,-647.03,0.00023013,2]
[312150450,1705669878758,-500.0,0.00023013,2]
[312150451,1705669878768,-500.0,0.00023013,2]
[312150452,1705669878778,-1927.09,0.00023013,2]
[312150453,1705669878789,-711.44,0.00023013,2]
[312150454,1705669878801,-500.0,0.00023013,2]
[312150455,1705669878811,-739.94,0.00023013,2]
[312150456,1705669878820,-500.0,0.00023013,2]
[312150457,1705669878830,-505.4191288,0.00023013,2]
[312150458,1705669878840,-1124.59,0.00023013,2]
[312150459,1705669878851,-500.0,0.00023013,2]
[312150460,1705669878862,-882.8,0.00023013,2]
[312150461,1705669878873,-500.0,0.00023013,2]
[312150462,1705669878884,-664.41,0.00023013,2]
[312150463,1705669878900,-507.69,0.00023013,2]
[312150464,1705669878910,-883.64,0.00023013,2]
[312150465,1705669878920,-500.0,0.00023013,2]
[312150466,1705669878930,-1919.81,0.00023013,2]
[312150467,1705669878940,-268.86332655,0.00023013,2]
[312150468,1705669878950,-899.16,0.00023013,2]
[312150469,1705669878960,-744.37,0.00023013,2]
[312150470,1705669878970,-500.0,0.00023013,2]
[312150471,1705669878981,-500.0,0.00023013,2]
[312150472,1705669878991,-648.21,0.00023013,2]
[312150473,1705669879002,-1272.95,0.00023013,2]
[312150474,1705669879012,-902.19,0.00023013,2]
[312150475,1705669879022,-500.0,0.00023013,2]
[312150476,1705669879032,-500.0,0.00023013,2]
[312150477,1705669879042,-500.0,0.00023013,2]
[312150478,1705669879051,-1231.59,0.00023013,2]
[312150479,1705669879061,-648.29,0.00023013,2]
[312150480,1705669879071,-500.0,0.00023013,2]
[312150481,1705669879080,-500.0,0.00023013,2]
[312150482,1705669879090,-500.0,0.00023013,2]
[312150483,1705669879100,-928.06,0.00023013,2]
[312150484,1705669879110,-500.0,0.00023013,2]
[312150485,1705669879120,-500.0,0.00023013,2]
[312150486,1705669879130,-1262.81,0.00023013,2]
[312150487,1705669879140,-608.03,0.00023013,2]
[312150488,1705669879150,-500.0,0.00023013,2]
[312150489,1705669879160,-500.0,0.00023013,2]
[312150490,1705669879170,-500.0,0.00023013,2]
[312150491,1705669879179,-716.12,0.00023013,2]
[312150492,1705669879189,-563.41,0.00023013,2]
[312150493,1705669879200,-500.0,0.00023013,2]
[312150494,1705669879210,-500.0,0.00023013,2]
[312150495,1705669879220,-903.17,0.00023013,2]
[312150496,1705669879230,-696.7,0.00023013,2]
[312150497,1705669879240,-1064.15,0.00023013,2]
[312150498,1705669879250,-575.26,0.00023013,2]
[312150499,1705669879260,-539.33,0.00023013,2]
[312150500,1705669879270,-500.34,0.00023013,2]
[312150501,1705669879279,-542.26,0.00023013,2]
[312150502,1705669879289,-500.0,0.00023013,2]
[312150503,1705669879299,-2012.98,0.00023013,2]
[312150504,1705669879309,-856.21,0.00023013,2]
[312150505,1705669879319,-684.1,0.00023013,2]
[312150506,1705669879329,-515.06,0.00023013,2]
[312150507,1705669879338,-500.0,0.00023013,2]
[312150508,1705669879348,-814.87,0.00023013,2]
[312150509,1705669879359,-500.0,0.00023013,2]
[312150510,1705669879368,-500.0,0.00023013,2]
[312150511,1705669879377,-500.0,0.00023013,2]
[312150512,1705669879387,-500.0,0.00023013,2]
[312150513,1705669879396,-718.46,0.00023013,2]
[312150514,1705669879406,-500.0,0.00023013,2]
[312150515,1705669879415,-500.0,0.00023013,2]
[312150516,1705669879426,-1408.02,0.00023013,2]
[312150517,1705669879435,-500.0,0.00023013,2]
[312150518,1705669879446,-500.0,0.00023013,2]
[312150519,1705669879456,-500.0,0.00023013,2]
[312150520,1705669879466,-500.0,0.00023013,2]
[312150521,1705669879476,-546.65,0.00023013,2]
[312150522,1705669879485,-841.35,0.00023013,2]
[312150523,1705669879495,-770.59,0.00023013,2]